bitfinex/quotes_SOLUSD_20220103
["timestamp","ask_amount","ask_price","bid_price","bid_amount"]
[1641194516205,8.689,172.69,172.58,11.64999368]
[1641194518008,8.689,172.69,172.58,11.38999368]
[1641194519411,8.689,172.69,172.58,11.64999368]
[1641194519613,87.09429482,172.7,172.58,11.64999368]
[1641194520414,85.5065,172.7,172.58,11.64999368]
[1641194522118,85.5065,172.7,172.58,19.74999368]
[1641194522743,76.8184,172.7,172.58,19.74999368]
[1641194523743,75.6365,172.71,172.58,19.74999368]
[1641194523943,2.94389482,172.72,172.58,19.74999368]
[1641194525443,1.3561,172.72,172.58,19.74999368]
[1641194525843,10.27439482,172.73,172.58,19.74999368]
[1641194526242,1.58779482,172.73,172.58,19.74999368]
[1641194526844,1.58779482,172.72,172.6,2.25744879]
[1641194527147,1.58779482,172.72,172.65,2.15260963]
[1641194527344,1.58779482,172.73,172.65,2.15260963]
[1641194527547,1.58779482,172.73,172.65,5.14500331]
[1641194531449,1.58779482,172.73,172.65,3.71830963]
[1641194533754,111.52737899,172.74,172.66,1.42669368]
[1641194534154,1.58779482,172.73,172.66,1.68669368]
[1641194534755,111.52737899,172.74,172.66,1.68669368]
[1641194536757,111.52737899,172.74,172.66,0.26]
[1641194536956,111.52737899,172.74,172.65,12.14420963]
[1641194536957,111.52737899,172.74,172.65,12.40420963]
[1641194540465,111.52737899,172.74,172.65,10.2516]
[1641194540664,111.52737899,172.74,172.65,1.5657]
[1641194541093,111.52737899,172.74,172.65,0.26]
[1641194541264,112.02737899,172.74,172.65,0.26]
[1641194541466,8.688,172.7,172.61,8.36]
[1641194541665,8.688,172.7,172.61,10.79329706]
[1641194541869,8.688,172.7,172.61,19.48079706]
[1641194542465,8.688,172.7,172.61,17.0475]
[1641194542765,8.688,172.7,172.61,8.1]
[1641194543766,10.77579482,172.7,172.61,8.1]
[1641194544268,1.58779482,172.69,172.61,8.1]
[1641194544469,2.08779482,172.69,172.61,8.1]
[1641194544668,38.76613637,172.67,172.61,8.36]
[1641194545367,39.26613637,172.67,172.61,8.36]
[1641194545569,38.76613637,172.67,172.61,0.26]
[1641194545769,38.76613637,172.67,172.59,3.22966111]
[1641194546376,38.76613637,172.67,172.59,2.96966111]
[1641194547475,38.76613637,172.67,172.59,3.22966111]
[1641194550097,38.76613637,172.67,172.59,0.26]
[1641194550498,39.26613637,172.67,172.55,9.0294]
[1641194551097,1.58779482,172.66,172.56,2.92776628]
[1641194551298,8.6915,172.64,172.56,2.92776628]
[1641194551498,8.6915,172.64,172.56,3.18776628]
[1641194552301,1.58779482,172.66,172.56,3.18776628]
[1641194552500,8.6906,172.65,172.56,4.61445996]
[1641194552900,8.6906,172.65,172.56,3.18776628]
[1641194553101,8.6906,172.65,172.57,1.2494]
[1641194553502,8.6906,172.65,172.57,1.5094]
[1641194554803,1.58779482,172.66,172.57,1.5094]
[1641194555204,111.12843119,172.67,172.57,1.5094]
[1641194556302,119.81803119,172.67,172.57,10.1995]
[1641194556902,118.23023637,172.67,172.57,10.1995]
[1641194558902,109.54063637,172.67,172.57,10.1995]
[1641194559306,109.54063637,172.67,172.57,11.62619368]
[1641194561111,79.464,172.67,172.57,11.62619368]
[1641194562810,1.58779482,172.69,172.57,11.62619368]
[1641194563009,1.58779482,172.69,172.57,19.01219368]
[1641194563510,1.58779482,172.7,172.59,2.47490096]
[1641194563911,1.58779482,172.7,172.6,1.42669368]
[1641194564110,1.58779482,172.7,172.6,1.68669368]
[1641194565412,1.58779482,172.7,172.62,8.6876]
[1641194565711,1.58779482,172.7,172.63,2.77713619]
[1641194566111,1.58779482,172.7,172.63,3.03713619]
[1641194566813,1.58779482,172.7,172.63,4.26543619]
[1641194567014,10.27569482,172.71,172.63,4.26543619]
[1641194567716,1.58779482,172.7,172.63,4.26543619]
[1641194569518,1.58779482,172.7,172.63,1.4883]
[1641194572020,10.27569482,172.71,172.63,1.4883]
[1641194576723,1.58779482,172.7,172.63,1.4883]
[1641194579331,10.27569482,172.71,172.63,1.4883]
[1641194579732,1.58779482,172.71,172.63,10.1754]
[1641194581535,1.58779482,172.71,172.64,1.42669368]
[1641194581935,1.58779482,172.71,172.64,1.68669368]
[1641194584768,1.58779482,172.71,172.64,0.26]
[1641194584969,1.58779482,172.71,172.63,10.1754]
[1641194585372,1.58779482,172.71,172.63,11.60209368]
[1641194590975,111.53221472,172.72,172.63,11.60209368]
[1641194594605,1.58779482,172.71,172.63,19.70209368]
[1641194594805,1.58779482,172.71,172.63,11.60209368]
[1641194600213,10.27549482,172.71,172.63,2.65499368]
[1641194600412,10.27549482,172.71,172.62,2.58915517]
[1641194600615,10.27549482,172.71,172.61,1.42669368]
[1641194600813,10.77549482,172.71,172.56,8.1]
[1641194601019,9.68779482,172.7,172.53,8.1]
[1641194601220,84.82689482,172.7,172.53,8.1]
[1641194601415,8.6914,172.64,172.55,8.6906]
[1641194601614,8.6914,172.64,172.56,4.19171422]
[1641194602216,8.6914,172.64,172.56,4.45171422]
[1641194602915,9.1914,172.64,172.56,4.45171422]
[1641194607923,8.6914,172.64,172.56,4.45171422]
[1641194611934,1.2991,172.67,172.56,13.14241422]
[1641194611935,8.6905,172.66,172.56,13.14241422]
[1641194612756,8.1905,172.66,172.56,13.14241422]
[1641194617766,8.1905,172.66,172.56,21.24241422]
[1641194618664,9.9887,172.67,172.56,21.24241422]
[1641194618864,1.2991,172.67,172.56,22.6691079]
[1641194620466,28.79440089,172.68,172.56,22.6691079]
[1641194620667,28.79440089,172.68,172.56,22.1691079]
[1641194626576,28.79440089,172.68,172.56,21.9091079]
[1641194628079,28.79440089,172.68,172.56,22.1691079]
[1641194628477,8.6882,172.7,172.56,22.1691079]
[1641194628680,8.6882,172.7,172.56,99.8040079]
[1641194629179,8.6875,172.71,172.56,99.8040079]
[1641194633785,106.3031347,172.72,172.56,99.8040079]
[1641194635186,107.89092952,172.72,172.56,99.8040079]
[1641194637398,99.20382952,172.72,172.56,107.4050079]
[1641194638093,97.6160347,172.72,172.56,107.4050079]
[1641194638805,106.3030347,172.72,172.56,107.4050079]
[1641194641506,107.89082952,172.72,172.56,107.4050079]
[1641194643809,106.3030347,172.72,172.56,107.4050079]
[1641194652120,106.3030347,172.72,172.56,99.8040079]
[1641194664130,97.6160347,172.72,172.56,99.8040079]
[1641194664427,97.6160347,172.72,172.56,157.6140079]
[1641194664827,97.6160347,172.72,172.57,101.23]
[1641194665029,97.6160347,172.72,172.65,2.64399593]
[1641194665528,97.6160347,172.72,172.66,1.42669368]
[1641194666029,22.8468347,172.72,172.66,1.68669368]
[1641194673039,22.8468347,172.72,172.66,10.37239368]
[1641194673437,81.54299482,172.74,172.66,10.37239368]
[1641194673638,1.58779482,172.74,172.67,1.42669368]
[1641194673837,1.58779482,172.74,172.68,8.1]
[1641194674036,58.22816977,172.75,172.69,2.93085094]
[1641194674237,58.22816977,172.75,172.72,8.6818]
[1641194674437,58.22816977,172.75,172.73,3.03219997]
[1641194674638,58.22816977,172.75,172.73,9.56519997]
[1641194674836,58.22816977,172.75,172.74,1.42669368]
[1641194675038,58.22816977,172.75,172.74,1.68669368]
[1641194675436,58.22816977,172.75,172.74,10.36809368]
[1641194676236,58.22816977,172.75,172.74,8.9414]
[1641194676437,58.22816977,172.75,172.74,10.36809368]
[1641194676838,58.22816977,172.75,172.74,8.9414]
[1641194677038,58.22816977,172.75,172.74,10.36809368]
[1641194677442,58.22816977,172.75,172.74,8.9414]
[1641194677639,58.22816977,172.75,172.74,0.26]
[1641194678041,58.22816977,172.75,172.73,20.07499997]
[1641194679869,58.22816977,172.75,172.73,11.39219997]
[1641194681272,58.22816977,172.75,172.74,1.42669368]
[1641194681474,58.22816977,172.75,172.74,1.68669368]
[1641194682676,58.22816977,172.75,172.74,10.36889368]
[1641194683772,58.22816977,172.75,172.74,8.9422]
[1641194691185,61.25631681,172.75,172.74,8.9422]
[1641194691984,61.25631681,172.75,172.74,17.0422]
[1641194692184,58.22816977,172.75,172.74,17.0422]
[1641194692385,61.25631681,172.75,172.74,8.9422]
[1641194692786,58.22816977,172.75,172.74,8.9422]
[1641194693186,58.22816977,172.75,172.74,17.0422]
[1641194693586,58.22816977,172.75,172.74,8.9422]
[1641194693788,58.22816977,172.75,172.74,11.97439997]
[1641194694689,58.22816977,172.75,172.74,3.03219997]
[1641194694888,61.25631681,172.75,172.66,18.3034]
[1641194695090,30.9907006,172.74,172.67,1.42669368]
[1641194695488,30.9907006,172.74,172.66,8.1]
[1641194695687,30.9907006,172.74,172.67,2.88293935]
[1641194695895,30.9907006,172.74,172.68,8.6852]
[1641194696297,58.22816977,172.75,172.68,8.6852]
[1641194696702,58.22816977,172.75,172.69,8.1]
[1641194697100,58.22816977,172.75,172.69,8.36]
[1641194697503,58.22816977,172.75,172.71,8.6833]
[1641194697905,58.22816977,172.75,172.71,8.9433]
[1641194703730,58.22816977,172.75,172.73,8.6823]
[1641194704133,58.22816977,172.75,172.73,8.9423]
[1641194704330,58.22816977,172.75,172.73,14.42143373]
[1641194705130,61.25631681,172.75,172.73,14.42143373]
[1641194705732,61.25631681,172.75,172.73,15.84812741]
[1641194705933,61.25631681,172.75,172.73,14.42143373]
[1641194706731,58.22816977,172.75,172.73,14.42143373]
[1641194707833,3.02814704,172.74,172.73,11.38923376]
[1641194708033,58.22816977,172.75,172.73,12.81592744]
[1641194708235,1.58779482,172.8,172.79,39.6781]
[1641194708435,1.58779482,172.8,172.79,25.03391521]
[1641194708634,0.80979482,172.8,172.79,49.72060889]
[1641194708837,0.80979482,172.8,172.79,26.72060889]
[1641194709235,23.03439463,172.9,172.79,26.72060889]
[1641194709637,73.063787,172.93,172.79,26.72060889]
[1641194709837,73.063787,172.93,172.79,99.86030889]
[1641194710436,73.063787,172.93,172.8,1.3218]
[1641194710639,73.063787,172.93,172.81,8.1]
[1641194710937,73.063787,172.93,172.88,2.83735236]
[1641194711139,0.909387,172.93,172.87,8.6764]
[1641194711338,0.909387,172.93,172.87,0.26]
[1641194711940,0.909387,172.93,172.83,37.2811]
[1641194712143,0.909387,172.93,172.86,0.26]
[1641194712542,0.909387,172.93,172.84,3.29221281]
[1641194712742,0.909387,172.93,172.85,6.087]
[1641194713146,0.909387,172.93,172.85,6.347]
[1641194713344,0.909387,172.93,172.87,8.6767]
[1641194713643,0.909387,172.93,172.87,8.9367]
[1641194714346,0.909387,172.93,172.87,13.8677]
[1641194716149,0.909387,172.93,172.87,8.9367]
[1641194735300,0.909387,172.93,172.87,8.6767]
[1641194735502,0.909387,172.93,172.86,8.6772]
[1641194736001,0.909387,172.93,172.85,8.1]
[1641194736201,0.909387,172.93,172.84,3.03221281]
[1641194736701,0.909387,172.93,172.84,3.29221281]
[1641194737501,9.586887,172.93,172.84,11.97011281]
[1641194737903,10.346887,172.93,172.84,11.97011281]
[1641194739604,9.846887,172.93,172.84,8.9379]
[1641194739805,9.846887,172.93,172.82,8.6789]
[1641194740004,18.446887,172.93,172.78,4.71640442]
[1641194740402,18.446887,172.93,172.79,8.1]
[1641194741003,18.446887,172.93,172.8,8.6803]
[1641194741204,9.72623825,172.92,172.78,4.71640442]
[1641194741406,24.7451424,172.85,172.78,4.71640442]
[1641194742308,25.2451424,172.85,172.78,4.71640442]
[1641194742915,25.2451424,172.85,172.78,4.97640442]
[1641194743311,33.9269424,172.85,172.78,4.97640442]
[1641194745534,33.4269424,172.85,172.78,4.97640442]
[1641194745738,33.4269424,172.85,172.78,13.65760442]
[1641194749244,24.7451424,172.85,172.78,13.65760442]
[1641194750046,24.7451424,172.85,172.78,14.92600442]
[1641194751550,8.6807,172.87,172.78,14.92600442]
[1641194751749,8.6799,172.88,172.78,14.92600442]
[1641194752548,28.4296527,172.87,172.78,14.92600442]
[1641194754875,37.1098527,172.87,172.78,14.92600442]
[1641194755252,28.4296527,172.87,172.78,14.92600442]
[1641194767599,28.4296527,172.87,172.78,23.02600442]
[1641194774033,72.313,172.89,172.78,23.02600442]
[1641194774334,3.16350858,172.92,172.78,24.4526981]
[1641194774736,0.909387,172.93,172.78,24.4526981]
[1641194775135,28.64313425,172.92,172.85,8.6776]
[1641194775434,28.64313425,172.92,172.85,14.6586]
[1641194775634,28.64313425,172.92,172.85,14.9186]
[1641194784543,28.64313425,172.92,172.85,8.9376]
[1641194785948,28.64313425,172.92,172.86,1.42669368]
[1641194786145,28.64313425,172.92,172.89,8.6757]
[1641194786347,28.64313425,172.92,172.9,3.03219997]
[1641194786547,28.64313425,172.92,172.9,3.29219997]
[1641194786947,31.67128129,172.92,172.9,3.29219997]
[1641194787150,31.67128129,172.92,172.9,0.26]
[1641194787549,31.67128129,172.92,172.89,8.9357]
[1641194787846,31.67128129,172.92,172.9,3.03219997]
[1641194788048,31.67128129,172.92,172.9,3.29219997]
[1641194789050,31.67128129,172.92,172.9,0.26]
[1641194789448,31.67128129,172.92,172.88,8.9362]
[1641194790850,31.67128129,172.92,172.87,9.9184]
[1641194791052,31.67128129,172.92,172.85,8.1]
[1641194791253,31.67128129,172.92,172.82,37.0234]
[1641194792152,40.34888129,172.92,172.84,8.6782]
[1641194792454,40.84888129,172.92,172.84,8.6782]
[1641194792655,40.84888129,172.92,172.84,8.9382]
[1641194793052,40.34888129,172.92,172.84,8.9382]
[1641194793852,40.84888129,172.92,172.84,8.9382]
[1641194795355,41.10888129,172.92,172.84,0.26]
[1641194795552,40.60888129,172.92,172.82,17.0388]
[1641194795752,41.10888129,172.92,172.82,17.0388]
[1641194798957,41.10888129,172.92,172.83,1.2358]
[1641194799458,41.10888129,172.92,172.83,1.4958]
[1641194803562,41.10888129,172.92,172.83,0.26]
[1641194803762,41.10888129,172.92,172.82,8.9388]
[1641194806465,40.84888129,172.92,172.82,8.9388]
[1641194807165,44.01238987,172.92,172.82,8.9388]
[1641194807866,44.27238987,172.92,172.82,8.9388]
[1641194808867,41.10888129,172.92,172.82,8.9388]
[1641194810773,40.84888129,172.92,172.82,8.9388]
[1641194811269,40.34888129,172.92,172.82,8.9388]
[1641194812470,40.84888129,172.92,172.82,8.9388]
[1641194812670,40.84888129,172.92,172.83,1.2286]
[1641194812869,40.84888129,172.92,172.83,9.907]
[1641194813071,40.84888129,172.92,172.83,10.167]
[1641194815095,41.10888129,172.92,172.83,1.4886]
[1641194829110,1.63950326,172.89,172.83,1.4886]
[1641194829312,10.31830326,172.89,172.83,1.4886]
[1641194829710,8.6788,172.89,172.83,1.4886]
[1641194829917,8.6788,172.89,172.83,10.1673]
[1641194835414,10.31790326,172.9,172.83,10.1673]
[1641194835714,10.81790326,172.9,172.83,10.1673]
[1641194835916,10.31790326,172.9,172.83,10.1673]
[1641194836516,10.31790326,172.9,172.75,6.03946419]
[1641194836517,18.41790326,172.9,172.75,6.03946419]
[1641194836717,19.17790326,172.9,172.77,47.0596356]
[1641194836916,1.63950326,172.87,172.77,47.0596356]
[1641194837120,8.6829,172.83,172.77,45.7075356]
[1641194837317,28.23041766,172.82,172.77,45.7075356]
[1641194838317,8.683,172.8,172.78,4.97640442]
[1641194838921,3.02814704,172.79,172.78,4.97640442]
[1641194841322,28.23041766,172.82,172.79,2.82809978]
[1641194841621,3.02814704,172.81,172.79,3.08809978]
[1641194841825,3.02814704,172.81,172.79,0.26]
[1641194842223,3.02814704,172.81,172.78,8.00860439]
[1641194844824,3.02814704,172.81,172.78,4.97640442]
[1641194848726,3.02814704,172.81,172.78,4.71640442]
[1641194850029,3.02814704,172.81,172.78,4.97640442]
[1641194851332,3.02814704,172.81,172.77,45.7075356]
[1641194851333,45.7075356,172.77,172.69,8.1]
[1641194851533,45.7075356,172.77,172.67,9.3289]
[1641194851732,45.7075356,172.77,172.68,8.685]
[1641194851733,54.3925356,172.77,172.68,8.685]
[1641194851937,54.8925356,172.77,172.66,77.30266963]
[1641194852134,55.1525356,172.77,172.66,4.92986963]
[1641194852732,55.1525356,172.77,172.65,2.67420705]
[1641194853135,8.1,172.76,172.65,2.67420705]
[1641194853337,8.6879,172.71,172.65,2.67420705]
[1641194854344,8.6879,172.71,172.65,2.93420705]
[1641194854945,9.1879,172.71,172.65,2.93420705]
[1641194855148,8.6879,172.71,172.65,2.93420705]
[1641194855345,8.6872,172.73,172.65,2.93420705]
[1641194857359,9.1872,172.73,172.65,2.93420705]
[1641194862871,8.6872,172.73,172.65,2.93420705]
[1641194863068,8.6872,172.73,172.65,11.62070705]
[1641194863267,16.7863,172.74,172.65,11.62070705]
[1641194863468,16.7863,172.74,172.65,16.43270705]
[1641194865769,16.7863,172.74,172.65,11.62070705]
[1641194868179,8.1,172.74,172.65,11.62070705]
[1641194873584,25.60313834,172.75,172.65,11.62070705]
[1641194875184,25.60313834,172.75,172.66,1.3353]
[1641194875483,25.60313834,172.75,172.68,8.6846]
[1641194875887,25.60313834,172.75,172.68,8.9446]
[1641194877387,54.3926356,172.77,172.68,8.9446]
[1641194880192,54.3926356,172.77,172.69,1.2641]
[1641194880588,54.3926356,172.77,172.69,1.5241]
[1641194882289,45.7075356,172.77,172.69,10.2085]
[1641194908451,0.00950326,172.82,172.81,23.70459806]
[1641194908678,0.00950326,172.82,172.81,32.88079803]
[1641194908876,0.00950326,172.82,172.81,33.14079803]
[1641194909076,4.45950613,172.9,172.81,33.14079803]
[1641194909276,29.98208058,172.88,172.81,33.14079803]
[1641194909681,29.98208058,172.88,172.81,34.56749171]
[1641194910379,29.98208058,172.88,172.81,43.24619171]
[1641194916783,29.98208058,172.88,172.81,37.10219171]
[1641194918589,29.98208058,172.88,172.81,45.20219171]
[1641194924096,29.98208058,172.88,172.81,32.68064242]
[1641194924295,30.74208058,172.88,172.81,24.00194242]
[1641194925099,39.42278058,172.88,172.81,26.39172935]
[1641194926098,38.92278058,172.88,172.81,26.39172935]
[1641194926297,39.42278058,172.88,172.81,26.39172935]
[1641194926697,39.42278058,172.88,172.81,24.00194242]
[1641194932902,38.66278058,172.88,172.81,24.26194242]
[1641194933103,39.16278058,172.88,172.81,24.26194242]
[1641194933304,29.98208058,172.88,172.81,24.26194242]
[1641194934305,29.98208058,172.88,172.81,32.94174242]
[1641194942663,8.6788,172.91,172.81,32.94174242]
[1641194942859,72.1842,172.92,172.81,38.56074242]
[1641194943064,0.909387,172.93,172.81,46.66074242]
[1641194943260,0.909387,172.93,172.82,1.42669368]
[1641194943460,0.909387,172.93,172.87,8.6753]
[1641194943660,0.909387,172.93,172.88,2.68139682]
[1641194943861,0.909387,172.93,172.88,4.1080905]
[1641194944059,0.909387,172.93,172.89,1.42669368]
[1641194944460,0.909387,172.93,172.89,1.68669368]
[1641194944759,0.909387,172.93,172.91,8.6738]
[1641194944964,0.909387,172.93,172.92,3.03219997]
[1641194945361,0.909387,172.93,172.92,3.29219997]
[1641194946486,0.909387,172.93,172.92,11.96549997]
[1641194954493,0.909387,172.93,172.92,20.06549997]
[1641194956498,0.909387,172.93,172.92,21.49219365]
[1641194956701,3.16350858,173.02,172.93,48.0]
[1641194956898,3.16350858,173.02,172.97,8.6704]
[1641194957098,3.16350858,173.02,172.97,8.9304]
[1641194957302,74.8532,173.05,172.97,8.9304]
[1641194957498,3.16350858,173.06,172.97,8.9304]
[1641194957901,3.66350858,173.06,172.97,8.9304]
[1641194958201,10.2187186,173.06,172.97,8.9304]
[1641194958401,10.2187186,173.06,172.97,8.6704]
[1641194958802,9.7187186,173.05,172.97,8.6704]
[1641194959001,10.2187186,173.05,172.97,8.6704]
[1641194959202,9.7187186,173.05,172.97,8.6704]
[1641194959402,6.55521002,173.05,172.97,8.6704]
[1641194959602,6.55521002,173.05,172.97,8.9304]
[1641194959803,7.05521002,173.05,172.97,8.9304]
[1641194960001,11.83470858,173.06,172.97,8.9304]
[1641194960903,3.66350858,173.06,172.97,8.9304]
[1641194961104,3.16350858,173.06,172.97,8.9304]
[1641194961505,3.66350858,173.06,172.97,8.9304]
[1641194962106,0.5,173.06,172.97,8.9304]
[1641194962307,9.1708,173.06,172.97,8.9304]
[1641194962506,8.6708,173.06,172.97,8.9304]
[1641194963111,9.1708,173.06,172.97,8.9304]
[1641194963512,8.6708,173.06,172.97,8.9304]
[1641194963912,9.1708,173.06,172.97,8.9304]
[1641194964312,8.6708,173.06,172.97,8.9304]
[1641194964939,9.1708,173.06,172.97,8.9304]
[1641194965213,8.6708,173.06,172.97,8.9304]
[1641194965914,0.5,173.06,172.97,8.9304]
[1641194966315,40.25716238,173.07,172.97,8.9304]
[1641194966514,40.25716238,173.07,172.98,1.3164]
[1641194966813,40.25716238,173.07,173.0,8.67]
[1641194967013,40.75716238,173.07,173.0,8.93]
[1641194967214,40.25716238,173.07,173.0,8.93]
[1641194967415,31.58676238,173.07,173.0,11.2022868]
[1641194967814,32.08676238,173.07,173.0,11.2022868]
[1641194968214,31.58676238,173.07,173.0,11.2022868]
[1641194968616,32.08676238,173.07,173.0,11.2022868]
[1641194968815,31.58676238,173.07,173.0,11.2022868]
[1641194969516,32.08676238,173.07,173.0,11.2022868]
[1641194969716,31.58676238,173.07,173.0,11.2022868]
[1641194970218,34.75027096,173.07,173.0,11.2022868]
[1641194970416,35.25027096,173.07,173.0,11.2022868]
[1641194970619,3.66350858,173.07,173.0,11.2022868]
[1641194971019,3.16350858,173.07,173.0,11.2022868]
[1641194971418,3.66350858,173.07,173.0,11.2022868]
[1641194971619,3.16350858,173.07,173.0,11.2022868]
[1641194972446,3.16350858,173.07,173.0,8.67]
[1641194972621,3.42350858,173.07,172.98,8.6708]
[1641194972822,3.92350858,173.07,172.97,8.1]
[1641194973422,3.16350858,173.05,172.97,8.1]
[1641194973622,11.83510858,173.05,172.97,16.7716]
[1641194973822,11.83510858,173.05,172.97,17.0316]
[1641194974024,6.5546793,173.04,172.97,17.0316]
[1641194975024,7.0546793,173.04,172.97,17.0316]
[1641194975228,10.21818788,173.04,172.97,17.0316]
[1641194975626,0.5,173.04,172.97,17.0316]
[1641194975827,12.33510858,173.05,172.97,17.0316]
[1641194976927,11.83510858,173.05,172.97,17.0316]
[1641194977329,8.6716,173.05,172.97,17.0316]
[1641194977527,9.1716,173.05,172.97,17.0316]
[1641194977929,8.6716,173.05,172.97,17.0316]
[1641194978431,9.1716,173.05,172.97,17.0316]
[1641194979130,8.6716,173.05,172.97,17.0316]
[1641194979329,8.6716,173.05,172.97,18.3705]
[1641194979832,0.5,173.05,172.97,18.3705]
[1641194980353,11.83430858,173.06,172.97,18.3705]
[1641194980553,12.33430858,173.06,172.97,18.3705]
[1641194981254,11.83430858,173.06,172.97,18.3705]
[1641194981655,3.16350858,173.06,172.97,19.79719368]
[1641194981855,3.66350858,173.06,172.97,19.79719368]
[1641194982057,0.26,173.06,172.97,18.3705]
[1641194982756,3.16350858,173.06,172.97,18.3705]
[1641194982955,3.66350858,173.06,172.97,18.3705]
[1641194983158,3.92350858,173.06,172.97,18.3705]
[1641194983356,19.1494294,173.06,172.97,18.3705]
[1641194984158,12.59420858,173.06,172.97,18.3705]
[1641194984357,12.33420858,173.06,172.97,18.3705]
[1641194984558,3.16350858,173.06,172.97,18.3705]
[1641194984760,9.71909967,173.05,172.97,18.3705]
[1641194985460,0.5,173.05,172.97,18.3705]
[1641194985659,11.83380858,173.07,172.97,18.3705]
[1641194986761,8.6703,173.07,172.97,18.3705]
[1641194987160,9.1703,173.07,172.97,18.3705]
[1641194987368,8.6703,173.07,172.97,18.3705]
[1641194987561,9.1703,173.07,172.97,18.3705]
[1641194987962,12.33380858,173.07,172.97,18.3705]
[1641194988761,11.83380858,173.07,172.97,18.3705]
[1641194988966,12.33380858,173.07,172.97,18.3705]
[1641194991166,6.55500472,173.06,172.97,18.3705]
[1641194991365,7.05500472,173.06,172.97,18.3705]
[1641194992064,0.5,173.06,172.97,18.3705]
[1641194992265,12.33380858,173.07,172.97,18.3705]
[1641194992768,6.55505289,173.06,172.97,18.3705]
[1641194992967,7.31505289,173.06,172.97,18.3705]
[1641194993168,15.72615289,173.06,172.97,18.3705]
[1641194993369,15.98615289,173.06,172.97,18.3705]
[1641194993769,3.16350858,173.05,172.97,18.3705]
[1641194993967,3.66350858,173.05,172.97,18.3705]
[1641194994368,7.05505289,173.05,172.97,18.1105]
[1641194994671,7.05505289,173.05,172.97,8.1]
[1641194994672,15.72635289,173.05,172.97,8.1]
[1641194994871,12.33480858,173.05,172.97,8.1]
[1641194995569,9.71951212,173.04,172.97,8.1]
[1641194995770,8.6725,173.03,172.97,8.1]
[1641194995970,8.6725,173.03,172.97,8.36]
[1641194996371,12.33600858,173.03,172.97,8.36]
[1641194996571,12.33600858,173.03,172.97,0.26]
[1641194996971,9.1725,173.03,172.95,3.00172063]
[1641194997372,8.6725,173.03,172.96,8.6721]
[1641194997572,8.6725,173.03,172.96,8.9321]
[1641194997775,11.83520858,173.04,172.96,8.9321]
[1641194997972,12.33520858,173.04,172.96,8.9321]
[1641194999376,11.83520858,173.04,172.96,8.9321]
[1641194999873,12.33520858,173.04,172.96,8.9321]
[1641195003576,11.83470858,173.05,172.96,8.9321]
[1641195003784,3.16350858,173.05,172.96,8.9321]
[1641195003979,3.16350858,173.05,172.97,1.42669368]
[1641195004180,3.16350858,173.05,173.0,8.6701]
[1641195004377,3.16350858,173.06,173.0,15.8481]
[1641195004580,3.16350858,173.06,173.0,16.1081]
[1641195004778,3.66350858,173.06,173.0,16.1081]
[1641195004984,0.5,173.06,173.0,16.1081]
[1641195005383,12.33400858,173.07,173.0,16.1081]
[1641195006484,12.33400858,173.07,173.0,8.9301]
[1641195006683,12.33400858,173.07,173.0,0.26]
[1641195006884,6.55517024,173.06,173.0,0.26]
[1641195007085,15.22597024,173.06,172.99,8.9307]
[1641195007285,15.72597024,173.06,172.99,8.9307]
[1641195007686,18.88947882,173.06,172.99,8.9307]
[1641195007887,10.21867882,173.06,172.99,8.9307]
[1641195008286,0.5,173.06,172.99,8.9307]
[1641195008486,12.33380858,173.07,172.99,8.9307]
[1641195012793,6.55514884,173.06,172.99,8.9307]
[1641195012991,7.05514884,173.06,172.99,8.9307]
[1641195013194,15.72574884,173.06,172.99,8.9307]
[1641195013391,9.1706,173.06,172.99,8.9307]
[1641195016114,9.4306,173.06,172.96,1.3482]
[1641195016414,9.4306,173.06,172.96,1.6082]
[1641195017016,9.1706,173.06,172.96,0.26]
[1641195017219,9.4306,173.06,172.96,0.26]
[1641195017419,9.4306,173.06,172.95,8.6727]
[1641195017619,6.55520467,173.05,172.95,10.2421]
[1641195017817,8.6725,173.03,172.95,10.2421]
[1641195018023,8.6725,173.03,172.95,12.98602999]
[1641195018219,9.1725,173.03,172.95,12.98602999]
[1641195018819,8.6725,173.03,172.95,12.98602999]
[1641195020523,3.16350858,173.04,172.95,12.98602999]
[1641195020723,3.16350858,173.04,172.95,14.41272367]
[1641195022225,3.16350858,173.05,172.95,14.41272367]
[1641195022425,8.6716,173.04,172.95,14.41272367]
[1641195028531,1.63868526,173.02,172.95,14.41272367]
[1641195031636,1.63868526,173.02,172.95,12.98602999]